Cogmind - Beta 16 @@@ ROGUE MODE // 2026.01.18 @ 15:59:49 Player: Ez3 Result: Self-destructed Performance ------------- Evolutions (1) 500 Regions Visited (3) 600 Robots Destroyed (8) 40 Value Destroyed (73) 73 Prototype IDs (0) 0 Alien Tech Used (0) 0 Bonus (0) 0 TOTAL SCORE: 1213 Bonus ------- None Cogmind --------- Core Integrity 354/400 Matter 265/300 Energy 150/250 System Corruption 0% Temperature Cool (0) Movement Rolling (110) Ox2 Location -9/Materials Parts ------- > --- POWER (1) -------- Ion Engine > --- PROPULSION (2) --- Wheel Wheel > --- UTILITY (4) ------ Thermal Generator Large Storage Unit ECM Suite > --- WEAPON (2) ------- Light EM Pulse Cannon Light EM Pulse Cannon > --- INVENTORY (15) --- Ion Engine Light Ion Engine Light Ion Engine Aluminum Leg Aluminum Leg Thermal Generator Seismic Detector Improved Weapon Shielding Improved Weapon Shielding Medium Laser Medium Laser Small Laser Battle Cannon Mining Laser Peak State ------------ > --- POWER ------------ Ion Engine > --- PROPULSION ------- Wheel Wheel > --- UTILITY ---------- Thermal Generator Large Storage Unit Improved Terrain Scanner ECM Suite > --- WEAPON ----------- Light EM Pulse Cannon Light EM Pulse Cannon > --- INVENTORY -------- Ion Engine Light Ion Engine Light Ion Engine Aluminum Leg Aluminum Leg Wheel Thermal Generator Seismic Detector Improved Weapon Shielding Improved Weapon Shielding Medium Laser Medium Laser Small Laser Battle Cannon Mining Laser [Rating: 17] Favorites ----------- Power Ion Engine Engine Ion Engine Propulsion Wheel Wheel Wheel Utility Large Storage Unit Device ECM Suite Storage Large Storage Unit Weapon Medium Laser Energy Gun Medium Laser Energy Cannon Light EM Pulse Cannon Ballistic Cannon Battle Cannon Build | -11 -10 -10 -9 ------- Run | Yrd Mat Min Mat Slots Evolved 2 | . . . 2 Power . | . . . . Propulsion . | . . . . Utility 2 | . . . 2 Weapon . | . . . . Parts Attached 16 | 7 2 2 5 Power 1 | 1 . . . Engine 1 | 1 . . . Core . | . . . . Reactor . | . . . . Propulsion 3 | 2 . . 1 Treads . | . . . . Leg . | . . . . Wheel 3 | 2 . . 1 Hover . | . . . . Flight . | . . . . Utility 6 | 2 1 1 2 Device 4 | 1 . 1 2 Storage 2 | 1 1 . . Processor . | . . . . Hackware . | . . . . Protection . | . . . . Artifact . | . . . . Weapon 6 | 2 1 1 2 Energy Gun 3 | 2 1 . . Energy Cannon 2 | . . . 2 Ballistic Gun . | . . . . Ballistic Cannon 1 | . . 1 . Launcher . | . . . . Special Weapon . | . . . . Impact Weapon . | . . . . Slashing Weapon . | . . . . Piercing Weapon . | . . . . Special Melee Weapon . | . . . . Unidentified Prototypes . | . . . . Parts Lost 2 | . . . 2 Power . | . . . . Propulsion 1 | . . . 1 Utility 1 | . . . 1 Weapon . | . . . . Highest Loss Streak 2 | . . . 2 To Critical Strikes . | . . . . Average Backups 10 | 5 8 10 13 Power 2 | 1 3 3 3 Propulsion 2 | 2 2 2 2 Utility 1 | . 1 1 3 Weapon 3 | 1 2 3 4 Tool/Special . | . . . . Unused Backups 12 | 2 . . 10 Power 3 | . . . 3 Propulsion 4 | 2 . . 2 Utility 3 | . . . 3 Weapon 2 | . . . 2 Tool/Special . | . . . . Average Slot Usage (%) 96 | . 100 100 93 Engine 12 | . 14 14 11 Wheel 24 | . 28 28 20 Device 20 | . 14 14 28 Storage 12 | . 14 14 11 Energy Gun 15 | . 28 16 8 Energy Cannon 3 | . . . 6 Ballistic Cannon 6 | . . 11 7 Peak Build Rating 17 | 9 9 9 17 Average Rating 10 | 6 9 8 13 On Entrance 6 | . 9 9 9 Avg Prop Armor Cover (%) . | . . . . Naked Turns . | . . . . Heaviest Build 43 | 15 30 32 43 Greatest Support 20 | 20 20 20 20 Greatest Overweight (x) 4 | 1 1 1 4 Average Overweight (x) . | . . 1 1 Largest Inventory Capacity 15 | 8 15 15 15 Average Capacity 13 | 7 14 15 15 Most Carried 15 | 8 8 11 15 Average Carried 10 | 5 7 10 13 Final Capacity 15 | 8 15 15 15 Final Carried 14 | 8 8 11 14 Class Distribution -------------------- 100% | Mutant Dominant Class ---------------- Mutant | -10/Materials Mutant | -10/Mines Mutant | -9/Materials Resources | -11 -10 -10 -9 ----------- Run | Yrd Mat Min Mat Matter Collected 362 | 270 . 30 62 Remotely . | . . . . Salvage Created 173 | 124 . . 49 Parts 12 | 7 . . 5 Haulers Intercepted . | . . . . Recyclers Shooed . | . . . . Parts Field Recycled . | . . . . Retrieved Matter . | . . . . Parts Self-Destructed . | . . . . Prevented . | . . . . Parts Restored . | . . . . Kills | -11 -10 -10 -9 ------- Run | Yrd Mat Min Mat Combat Hostiles Destroyed 3 | . . . 3 Guns 1 | . . . 1 Cannons 2 | . . . 2 Classes Destroyed 4 | 2 . . 2 Tunneler 3 | 3 . . . Recycler 1 | 1 . . . Watcher 1 | . . . 1 Swarmer 3 | . . . 3 Best Kill Streak 4 | 4 . . 3 Combat Bots Only 3 | . . . 3 Max Kills in Single Turn 2 | 1 . . 2 Gunslinging . | . . . . Exploded . | . . . . Melee . | . . . . Uniques/NPCs Destroyed . | . . . . Combat | -11 -10 -10 -9 -------- Run | Yrd Mat Min Mat Hostile Shots Fired 35 | . . 4 31 Missed 14 | . . 3 11 Hits 21 | . . 1 20 Projectile 21 | . . 1 20 Critical Strikes 1 | . . . 1 Damage Taken 279 | . . 11 268 Core 46 | . . . 46 Absorbed by Shields . | . . . . Core Remaining (%) 100 | 100 . 100 . Volleys Fired 19 | 9 1 1 8 Largest 2 | 2 1 2 2 Hottest 112 | 100 40 73 112 Shots Fired 37 | 18 1 2 16 Gun 27 | 18 1 1 7 Cannon 10 | . . 1 9 Launcher . | . . . . Special . | . . . . Kinetic 8 | . . 1 7 Thermal 18 | 18 . . . Explosive . | . . . . Electromagnetic 11 | . 1 1 9 Robot Hit Streak 6 | 4 5 . 6 Robot Miss Streak 6 | 4 . 2 6 Penetration Max . | . . . . Secondary Targets . | . . . . Shots Hit Robots 16 | 8 1 . 7 Core Hits 9 | 5 . . 4 Critical Kills . | . . . . Critical Parts Destroyed . | . . . . Critical Strikes . | . . . . Melee Attacks . | . . . . Impact . | . . . . Slashing . | . . . . Piercing . | . . . . Sneak Attacks . | . . . . Combat Hostiles . | . . . . Follow-up Attacks . | . . . . Damage Inflicted 309 | 101 22 . 186 Guns 185 | 101 22 . 62 Cannons 101 | . . . 101 Explosions 20 | . . . 20 Melee . | . . . . Ramming 3 | . . . 3 Kinetic 63 | . . . 63 Thermal 121 | 101 . . 20 Explosive . | . . . . Electromagnetic 122 | . 22 . 100 Impact . | . . . . Slashing . | . . . . Piercing . | . . . . Highest Corruption . | . . . . Average Corruption . | . . . . Corruption Purged . | . . . . Corruption Blocked . | . . . . Overload Shots . | . . . . Overflow Damage . | . . . . Projectiles . | . . . . Explosions . | . . . . Melee . | . . . . Knockbacks . | . . . . Impact . | . . . . Kinetic . | . . . . Secondary . | . . . . Self-Inflicted Damage 1 | . . . 1 Shots . | . . . . Rammed 1 | . . . 1 Targets Rammed 1 | . . . 1 Kicked . | . . . . Crushed . | . . . . Highest Temperature 176 | 176 . 12 42 Average Temperature 46 | 73 . 8 8 Received Heat Transfer 87 | . . 6 81 Siege Activations . | . . . . Martial Activations . | . . . . Shielding Activations . | . . . . Robots Disrupted . | . . . . Combat Hostiles . | . . . . Robots Corrupted . | . . . . Combat Hostiles . | . . . . Parts Fried . | . . . . Impact Corruptions . | . . . . Robots Melted . | . . . . Combat Hostiles . | . . . . Parts Melted 1 | 1 . . . Heat Transferred 346 | 296 . . 50 Parts Sabotaged . | . . . . Parts Stolen . | . . . . Parts Stripped . | . . . . Power Chain Reactions 1 | . . . 1 Alert | -11 -10 -10 -9 ------- Run | Yrd Mat Min Mat Maximum Alert Level . | . . . . Low Security (%) 100 | 100 100 100 100 Level 1 . | . . . . Level 2 . | . . . . Level 3 . | . . . . Level 4 . | . . . . Level 5 . | . . . . High Security . | . . . . Max Security . | . . . . Peak Influence 66 | 10 7 . 66 Initial . | . . . . Average 10 | 1 . . 26 Influence Increases 125 | 20 7 . 98 Destroy 0b10 Robot/C 60 | . . . 60 Destroy 0b10 Robot/NC 25 | 20 . . 5 Destroy Leader 12 | . . . 12 Successful Hack 7 | . 7 . . Destroy Structure 6 | . . . 6 Partial Spotted 15 | . . . 15 Influence Decreases 125 | 20 7 . 98 Time Decay 117 | 20 7 . 90 Lost Part 8 | . . . 8 Squads Dispatched . | . . . . Investigation . | . . . . Extermination . | . . . . Reinforcement . | . . . . Assault . | . . . . Garrison . | . . . . Intercept . | . . . . Searches Triggered . | . . . . Construction Impeded . | . . . . Haulers Reinforced . | . . . . Active Scanning Responses . | . . . . Cargo Convoy Interrupts . | . . . . Stealth | -11 -10 -10 -9 --------- Run | Yrd Mat Min Mat Distress Signals 1 | . . . 1 Communications Jammed . | . . . . Distress Signals . | . . . . Times Spotted 16 | . 1 4 11 Peak Tracking Total 5 | . 2 2 5 Tactical Retreats 4 | . . 1 3 ECM-based Alert Blocks 8 | . . 2 6 Traps | -11 -10 -10 -9 ------- Run | Yrd Mat Min Mat Traps Triggered . | . . . . Indirectly . | . . . . Trap Hack Attempts . | . . . . Triggered . | . . . . Disarmed . | . . . . Reprogrammed . | . . . . Reused . | . . . . Traps Extracted . | . . . . Installed . | . . . . Triggered . | . . . . Machines | -11 -10 -10 -9 ---------- Run | Yrd Mat Min Mat Machines Disabled . | . . . . Max in Single Turn . | . . . . Machines Repaired . | . . . . Machines Dismantled . | . . . . Machines Sabotaged . | . . . . Overloaded Fab Kills . | . . . . Hacking | -11 -10 -10 -9 --------- Run | Yrd Mat Min Mat Machines Accessed 3 | . 1 . 2 Terminals 3 | . 1 . 2 Fabricators . | . . . . Repair Stations . | . . . . Recycling Units . | . . . . Scanalyzers . | . . . . Garrison Access . | . . . . Total Hacks 11 | . 3 . 8 Successful 6 | . 2 . 4 Failed 5 | . 1 . 4 Catastrophic 1 | . . . 1 Database Lockouts . | . . . . Manual 1 | . . . 1 Terminals 11 | . 3 . 8 Fabricators . | . . . . Repair Stations . | . . . . Recycling Units . | . . . . Scanalyzers . | . . . . Garrison Access . | . . . . Terminal Hacks 6 | . 2 . 4 Record 1 | . . . 1 Emergency Access Points 1 | . . . 1 Locate Traps 1 | . . . 1 Dispatch Records 2 | . 1 . 1 Patrol Status 1 | . 1 . . Fabricator Hacks . | . . . . Repair Station Hacks . | . . . . Recycling Unit Hacks . | . . . . Scanalyzer . | . . . . Garrison Access Hacks . | . . . . Unauthorized Hacks . | . . . . Terminals . | . . . . Fabricators . | . . . . Repair Stations . | . . . . Recycling Units . | . . . . Scanalyzers . | . . . . Garrison Access . | . . . . Data Cores Recovered . | . . . . Used . | . . . . Hacking Detections 3 | . 1 . 2 Full Trace Events . | . . . . Feedback Events . | . . . . Feedback Blocked . | . . . . Robot Schematics Acquired . | . . . . Robots Built . | . . . . Authchips . | . . . . Time . | . . . . Total Robot Build Rating . | . . . . Part Schematics Acquired . | . . . . Parts Built . | . . . . Authchips . | . . . . Time . | . . . . Total Part Build Rating . | . . . . Part Studies Acquired . | . . . . Parts Repaired . | . . . . Time . | . . . . Parts Recycled . | . . . . Recycled Matter . | . . . . Retrieved Matter . | . . . . Retrieved Components . | . . . . Parts Scanalyzed . | . . . . Part Schematics Acquired . | . . . . Parts Damaged . | . . . . Bothacking | -11 -10 -10 -9 ------------ Run | Yrd Mat Min Mat Used RIF Installer . | . . . . Robots Hacked . | . . . . Non-combat . | . . . . Combat . | . . . . Robot Hacks Applied . | . . . . Relay Couplers Released . | . . . . Fabnet Peak Effective % . | . . . . Robots Rewired . | . . . . Allies Hacked . | . . . . Hacks Repelled . | . . . . Allies | -11 -10 -10 -9 -------- Run | Yrd Mat Min Mat Total Allies . | . . . . Largest Group . | . . . . Highest-Rated Group . | . . . . Highest-Rated Ally . | . . . . Total Orders . | . . . . Ally Attacks . | . . . . Total Damage . | . . . . Kills . | . . . . Allies Corrupted . | . . . . Allies Melted . | . . . . Intel | -11 -10 -10 -9 ------- Run | Yrd Mat Min Mat Active Infowar (turns) 506 | 43 103 140 220 Terrain 334 | 43 103 15 173 Seismic 150 | . . . 150 ECM 345 | . . 125 220 Robot Analysis Total . | . . . . Derelict Logs Recovered 1 | . . 1 . Drone Launches . | . . . . Drone Recoveries . | . . . . Exploration | -11 -10 -10 -9 ------------- Run | Yrd Mat Min Mat Turns Passed 571 | 108 103 140 220 Spaces Moved 487 | 71 103 138 175 Core 6 | 6 . . . Treads . | . . . . Legs . | . . . . Wheels 481 | 65 103 138 175 Hover . | . . . . Flight . | . . . . Fastest Speed 50 | 50 80 95 95 Average Speed 94 | 79 92 95 101 Slowest Speed 140 | 100 95 95 140 Overloaded Moves . | . . . . Propulsion Burnouts . | . . . . Robots Hopped . | . . . . Potential Cave-ins . | . . . . Cave-ins Triggered . | . . . . Exploration Rate (%) 15 | 4 17 24 18 Regions Visited 3 Branch Regions 1 Pre-discovered Areas . | . . . . Known Exits Taken . | . . . . Unknown Exits Taken 3 | 1 1 1 . Scrap Searched 1 | . . 1 . Spaces Dug . | . . . . Terrain Destroyed 5 | . . . 5 Melee . | . . . . Projectile 1 | . . . 1 AOE 4 | . . . 4 Terrain Rammed . | . . . . Walls Destroyed . | . . . . Machines Disabled . | . . . . Actions | -11 -10 -10 -9 --------- Run | Yrd Mat Min Mat Total 555 | 102 109 143 201 Wait 3 | . . . 3 Move 484 | 70 102 137 175 Hop . | . . . . Pick Up 24 | 12 2 3 7 Fast Attach 7 | 7 . . . Attach 4 | . . . 4 Detach . | . . . . Swap 6 | . 2 2 2 Drop 7 | 4 2 . 1 Fire 19 | 9 1 1 8 Melee . | . . . . Ram 1 | . . . 1 Kick . | . . . . Crush . | . . . . Escape Stasis . | . . . . Rewire . | . . . . Trap . | . . . . Miscellaneous . | . . . . Route ------- -11/Scrapyard -10/Materials -10/Mines -9/Materials History --------- Turn | Location | Event 13 | -11/Scrapyard | Discovered new exit (range 16) 109 | -11/Scrapyard | Entered Materials 198 | -10/Materials | Discovered new exit (range 15) 212 | -10/Materials | Entered Mines 236 | -10/Mines | A weapon hastily lodged in a ceiling crevice suddenly fell to the ground 308 | -10/Mines | Learned Materials emergency access door positions 317 | -10/Mines | Build established: Mutant 325 | -10/Mines | Discovered new exit (range 5) 352 | -10/Mines | Entered Materials 352 | -9/Materials | Evolved 2 slots: Utility x2 572 | -9/Materials | Self-destructed Last Messages --------------- 4x Patrol 6x Transport 00449_ W-16 Scout sends out distress signal. 00450_ W-16 Scout destroyed. 00455_ Acquired 24 matter. 00457_ Acquired 5 matter. 00461_ Acquired Lgt. EM Pulse Cannon. 00503_ K-01 Serf collects debris. 00511_ Dropped EM Pulse Gun. 00513_ Acquired Wheel. 00534_ Critical hit (Burn: +37). 00537_ Wheel destroyed. 00540_ K-01 Serf collects debris. 00540_ Imp. Terrain Scanner destroyed. 00545_ K-01 Serf collects debris. 00554_ K-01 Serf cleans the Material Compactor. 00558_ K-01 Serf collects debris. 00569_ K-01 Serf cleans the Material Compactor. 00571_ K-01 Serf collects debris. 00571_ Slammed into Y-45 Defender. Map ----- +----------------------------------------------------+ | ?????????????????????????????????????????# # | | ????????????????????????????????????????#######"= | | ????????????????????????????????????????# | | ????????????????????????????????????????+ | | ???????????????????????????+???+????????# | | ????????????????????????????????????????######## | | ???????????????????????????????????????????????# | | ???????????????????????????????????????????#???# | | ????????????????????????????????????????######## | | ??+?????????????????????????????????????# | | ????????????????????????????????????????# | | ????????????????????????????????????????# | | ???????????????????????#####????????????#^^^###### | | ???????????????????????# ??????????? #^^^#????? | | ??????????????????????## ????????????# #????? | | ??????????????????????? ###?????????+ +????? | | ???????????????????????? #?????????# #????? | | ????????????????????????? ##?????? ?# #????? | | ?????????????????????????? #??????? ?# #? ??? | | ?????????????????########## #?????????# #??#+? | | ?????????????????# # u##????????# #??# ? | | ?????????????????# k # #????#????# #??# # | | ?????????????????# #g ########### #### # | | ?????????????????# """ k#Y | | ?????????????????# """""Yg | | ?????????????????# """""@# | | ?????????????????# """"" ####/###########+####### | | ?????????????????# Y""" ## ## #?# | | ?????????????????# ## % ## #?# | | ?????????????????########### [ ## #?# | | ????????????????????#?#????# ## ] #?# | | ???????????????????????????# ## #?# | | ???????????????????????????# [ """ ## #?# | | ???????????????????????????# """ # ### | | ???????????????????????????# """ ## * / | | ???????????????????????????# ############## | | ???????????????????????????########+#??????#?????# | | ??????????????????????????????????# #?#?#??????#?# | | ??????????????????????????#??????? ??#?????????# | | ????????????????????????????????#? ?????#??????# | | ??????????????????#????????#?? ??? ???????????? | | ?????????????????????????????????? ????????????# | | ????????????????????????????????# ???????????? | | ?????????????????????????????????#####???????????? | | ?????????????????????????????????????????????????? | | ????????????????????????????????????? ? ?????????? | | ????????????????????????????????????????"????????? | | ?????????????????????????????????????????"???????? | | ???????????????????????????????????"????"????????? | | ???????????????????????????????? ????????????????? | +----------------------------------------------------+ Best States ------------- Heat Dissipation 28 Energy Generation 10 Energy Capacity 250 Matter Stores 300 Matter Capacity 300 Sight Range 16 Terrain Scan Range 16 Terrain Scan Density 10 ECM Strength 1 Evasion (%) 44 Item Schematics ----------------- None Robot Schematics ------------------ None Fabricated ------------ Nothing Repaired ---------- Nothing Studied --------- None Alien Tech Used ----------------- None Achievements -------------- None Challenges ------------ None Game ------ Seed FusionDecoderPower Manual? 0 Play Time 00:23:45 Cumulative 11.2 hours Start 2026.01.18 @ 15:31:35 End 2026.01.18 @ 15:59:49 Sessions 1 Manual Loads 0 Difficulty Rogue Special Mode None Game No. 7 Rogue 7 Adventurer 0 Explorer 0 Win Type - Total 0 Types 0/0/0/0/0/0/0/0/0/0 Lore% 1 Gallery% 11 Achievement% 8 Wizard Run 0 Options --------- Layout 0 ASCII 0 Keyboard 1 Movement Vi Keybinds 0 Fullscreen 1 Font 14/SmallcapsGlow Map View 72x54 Zoom Use 0% Tactical HUD 1 Map Filters NONE Filters NONE Steam 0 RUN: ffa6b3e8-e2cc-49ff-b3bc-5177bdabf334